[Event "Slovakian ECo-C Extraliga 2024-25"]
[Site "Slovakia"]
[Date "2025.02.15"]
[Round "5.3"]
[White "Sipos, Istvan"]
[Black "Skreko, Igor"]
[Result "1/2-1/2"]
[Annotator "ChessBase"]
[ECO "E73"]
[WhiteElo "2455"]
[BlackElo "2242"]
[PlyCount "71"]
[EventDate "2024.09.12"]
[EventType "team-tourn"]
[EventCountry "SVK"]
[SourceTitle "playchess.com"]
[Source "ChessBase"]
[SourceQuality "1"]
[TimeControl "5400+30"]

1. c4 {[%emt 0:00:03]} Nf6 {[%emt 0:00:21]} 2. Nc3 {[%emt 0:00:04]} g6 {[%emt 0:00:04]} 3. e4 {[%emt 0:01:41]} d6 {[%emt 0:00:05]} 4. d4 {[%emt 0:00:04]} Bg7 {[%emt 0:00:02]} 5. Be2 {[%emt 0:00:05]} O-O {[%emt 0:00:05]} 6. Be3 {[%emt 0:00:20]} Na6 {[%emt 0:02:51]} 7. g4 {[%emt 0:11:55]} c5 {[%emt 0:01:05]} 8. d5 {[%emt 0:00:40]} e6 {[%emt 0:00:14]} 9. g5 {[%emt 0:05:48]} Ne8 {[%emt 0:00:07]} 10. h4 {[%emt 0:20:08]} exd5 {[%emt 0:00:35]} 11. exd5 {[%emt 0:00:53]} Bxc3+ {[%emt 0:01:46]} 12. bxc3 {[%emt 0:00:01]} Ng7 {[%emt 0:00:09]} 13. h5 {[%emt 0:01:16]} gxh5 {[%emt 0:01:16]} 14. Bxh5 {[%emt 0:07:19]} Bf5 {[%emt 0:01:06]} 15. Bg4 {[%emt 0:21:39]} Bg6 {[%emt 0:02:00]} 16. Ne2 {[%emt 0:01:15]} Qe7 {[%emt 0:04:06]} 17. Ng3 {[%emt 0:03:19]} Rae8 {[%emt 0:01:20]} 18. Kd2 {[%emt 0:01:53]} Nc7 {[%emt 0:09:29]} 19. a4 {[%emt 0:00:34]} Na8 {[%emt 0:02:59]} 20. Qf1 {[%emt 0:13:48]} Nb6 {[%emt 0:02:57]} 21. a5 {[%emt 0:00:34]} Nd7 {[%emt 0:00:24]} 22. Bxd7 {[%emt 0:01:11]} Qxd7 {[%emt 0:00:10]} 23. Qh3 {[%emt 0:00:08]} Qe7 {[%emt 0:11:21]} 24. Qh4 {[%emt 0:03:30]} Nf5 {[%emt 0:02:27]} 25. Nxf5 {[%emt 0:00:19]} Bxf5 {[%emt 0:00:01]} 26. Qf4 {[%emt 0:02:52]} Qd7 {[%emt 0:02:24]} 27. f3 {[%emt 0:01:14]} Re7 {[%emt 0:02:54]} 28. Bf2 {[%emt 0:00:50]} Rfe8 {[%emt 0:01:29]} 29. Rhe1 {[%emt 0:00:05]} Bg6 {[%emt 0:28:22]} 30. Rxe7 {[%emt 0:00:04]} Rxe7 {[%emt 0:00:05]} 31. Re1 {[%emt 0:00:11]} Rxe1 {[%emt 0:00:22]} 32. Bxe1 {[%emt 0:00:03]} Qh3 {[%emt 0:02:56]} 33. Qf6 {[%emt 0:01:22]} Qf1 {[%emt 0:02:47]} 34. Qd8+ {[%emt 0:00:22]} Kg7 {[%emt 0:00:05]} 35. Qf6+ {[%emt 0:00:03]} Kg8 {[%emt 0:00:05]} 36. Qd8+ {[%emt 0:00:04]} 1/2-1/2

[Event "Slovakian ECo-C Extraliga 2024-25"]
[Site "Slovakia"]
[Date "2025.02.15"]
[Round "5.3"]
[White "Stachowiak, Kamil"]
[Black "Rohacek, Miroslav"]
[Result "1-0"]
[Annotator "ChessBase"]
[ECO "D23"]
[WhiteElo "2413"]
[BlackElo "2235"]
[PlyCount "75"]
[EventDate "2024.09.12"]
[EventType "team-tourn"]
[EventCountry "SVK"]
[SourceTitle "playchess.com"]
[Source "ChessBase"]
[SourceQuality "1"]
[TimeControl "5400+30"]

1. d4 {[%emt 0:00:04]} Nf6 {[%emt 0:00:24]} 2. Nf3 {[%emt 0:00:10]} d5 {[%emt 0:00:59]} 3. c4 {[%emt 0:00:09]} dxc4 {[%emt 0:01:47]} 4. Qa4+ {[%emt 0:03:10]} Nbd7 {[%emt 0:19:35]} 5. Qxc4 {[%emt 0:00:23]} a6 {[%emt 0:00:21]} 6. Bf4 {[%emt 0:07:51]} c6 {[%emt 0:04:10]} 7. Nc3 {[%emt 0:00:40]} Nb6 {[%emt 0:05:34]} 8. Qd3 {[%emt 0:10:10]} Nbd5 {[%emt 0:02:19]} 9. Bd2 {[%emt 0:00:24]} Bg4 {[%emt 0:08:38]} 10. e4 {[%emt 0:09:13]} Nb4 {[%emt 0:13:35]} 11. Qb1 {[%emt 0:00:17]} Bxf3 {[%emt 0:00:19]} 12. gxf3 {[%emt 0:00:03]} a5 {[%emt 0:01:17]} 13. a3 {[%emt 0:09:56]} Na6 {[%emt 0:00:13]} 14. d5 {[%emt 0:03:13]} g6 {[%emt 0:03:55]} 15. Qc2 {[%emt 0:08:41]} Bg7 {[%emt 0:10:10]} 16. dxc6 {[%emt 0:00:31]} bxc6 {[%emt 0:00:10]} 17. Na4 {[%emt 0:00:41]} O-O {[%emt 0:00:19]} 18. Qxc6 {[%emt 0:04:42]} Qd7 {[%emt 0:02:04]} 19. Qxd7 {[%emt 0:16:13]} Nxd7 {[%emt 0:00:20]} 20. Rc1 {[%emt 0:00:02]} Bd4 {[%emt 0:11:32]} 21. Be3 {[%emt 0:05:56]} Bxe3 {[%emt 0:01:09]} 22. fxe3 {[%emt 0:00:04]} Rfc8 {[%emt 0:00:49]} 23. Rxc8+ {[%emt 0:01:07]} Rxc8 {[%emt 0:00:13]} 24. Nc3 {[%emt 0:00:09]} Nac5 {[%emt 0:00:50]} 25. Bb5 {[%emt 0:00:30]} Ne5 {[%emt 0:02:08]} 26. Ke2 {[%emt 0:01:01]} Nb7 {[%emt 0:06:20]} 27. f4 {[%emt 0:06:22]} Nc4 {[%emt 0:01:47]} 28. Bxc4 {[%emt 0:05:06]} Rxc4 {[%emt 0:00:08]} 29. Rd1 {[%emt 0:00:06]} Nd6 {[%emt 0:03:07]} 30. Rd5 {[%emt 0:01:25]} a4 {[%emt 0:00:33]} 31. Rd4 {[%emt 0:00:34]} Rc6 {[%emt 0:00:38]} 32. Rxa4 {[%emt 0:00:36]} Nc4 {[%emt 0:00:30]} 33. Nd5 {[%emt 0:02:01]} Kg7 {[%emt 0:00:33]} 34. Nxe7 {[%emt 0:03:44]} Rc5 {[%emt 0:00:04]} 35. Rb4 {[%emt 0:00:49]} f5 {[%emt 0:00:34]} 36. exf5 {[%emt 0:00:26]} Nd6 {[%emt 0:00:53]} 37. fxg6 {[%emt 0:00:35]} hxg6 {[%emt 0:00:05]} 38. Nxg6 {[%emt 0:00:40]} 1-0

[Event "Slovakian ECo-C Extraliga 2024-25"]
[Site "Slovakia"]
[Date "2025.02.15"]
[Round "5.3"]
[White "Schwarz, Dusan"]
[Black "Bokros, Albert"]
[Result "1/2-1/2"]
[Annotator "ChessBase"]
[ECO "C13"]
[WhiteElo "2264"]
[BlackElo "2376"]
[PlyCount "66"]
[EventDate "2024.09.12"]
[EventType "team-tourn"]
[EventCountry "SVK"]
[SourceTitle "playchess.com"]
[Source "ChessBase"]
[SourceQuality "1"]
[TimeControl "5400+30"]

1. d4 {[%emt 0:00:04]} e6 {[%emt 0:00:24]} 2. e4 {[%emt 0:01:15]} d5 {[%emt 0:00:46]} 3. Nc3 {[%emt 0:00:16]} Nf6 {[%emt 0:00:17]} 4. Bg5 {[%emt 0:00:21]} Be7 {[%emt 0:00:11]} 5. e5 {[%emt 0:00:14]} Nfd7 {[%emt 0:00:06]} 6. h4 {[%emt 0:00:38]} h6 {[%emt 0:00:22]} 7. Bxe7 {[%emt 0:01:15]} Qxe7 {[%emt 0:00:07]} 8. f4 {[%emt 0:13:21]} a6 {[%emt 0:01:15]} 9. Nf3 {[%emt 0:01:23]} c5 {[%emt 0:01:02]} 10. Qd2 {[%emt 0:02:16]} Nc6 {[%emt 0:00:23]} 11. dxc5 {[%emt 0:03:18]} Qxc5 {[%emt 0:03:27]} 12. Bd3 {[%emt 0:02:07]} b5 {[%emt 0:05:58]} 13. Qf2 {[%emt 0:07:27]} Bb7 {[%emt 0:04:11]} 14. O-O {[%emt 0:05:58]} O-O {[%emt 0:06:20]} 15. Ne2 {[%emt 0:05:45]} Qxf2+ {[%emt 0:04:18]} 16. Rxf2 {[%emt 0:00:27]} f6 {[%emt 0:03:39]} 17. exf6 {[%emt 0:09:13]} Rxf6 {[%emt 0:06:34]} 18. Ned4 {[%emt 0:07:31]} Raf8 {[%emt 0:05:17]} 19. Re2 {[%emt 0:08:22]} Nxd4 {[%emt 0:03:45]} 20. Nxd4 {[%emt 0:00:05]} Nc5 {[%emt 0:00:11]} 21. Rae1 {[%emt 0:04:43]} Ne4 {[%emt 0:05:07]} 22. Re3 {[%emt 0:03:42]} R8f7 {[%emt 0:07:28]} 23. h5 {[%emt 0:06:52]} Re7 {[%emt 0:09:52]} 24. Ne2 {[%emt 0:03:22]} e5 {[%emt 0:02:45]} 25. fxe5 {[%emt 0:04:23]} Rxe5 {[%emt 0:00:19]} 26. Nc3 {[%emt 0:02:40]} Rf4 {[%emt 0:05:40]} 27. Nxe4 {[%emt 0:02:41]} dxe4 {[%emt 0:00:21]} 28. Be2 {[%emt 0:00:13]} Rc5 {[%emt 0:04:37]} 29. c3 {[%emt 0:00:22]} Bd5 {[%emt 0:02:44]} 30. Rf1 {[%emt 0:02:00]} Rxf1+ {[%emt 0:01:51]} 31. Kxf1 {[%emt 0:00:06]} Kf7 {[%emt 0:00:31]} 32. a3 {[%emt 0:01:38]} Kf6 {[%emt 0:00:44]} 33. Kf2 {[%emt 0:00:37]} Bf7 {[%emt 0:06:17]} 1/2-1/2

[Event "Slovakian ECo-C Extraliga 2024-25"]
[Site "Slovakia"]
[Date "2025.02.15"]
[Round "5.4"]
[White "Rigo, Zsolt"]
[Black "Kusiak, Matej"]
[Result "1-0"]
[Annotator "ChessBase"]
[ECO "B29"]
[WhiteElo "2408"]
[BlackElo "2227"]
[PlyCount "55"]
[EventDate "2024.09.12"]
[EventType "team-tourn"]
[EventCountry "SVK"]
[SourceTitle "playchess.com"]
[Source "ChessBase"]
[SourceQuality "1"]
[TimeControl "5400+30"]

1. e4 {[%emt 0:00:04]} c5 {[%emt 0:00:42]} 2. Nf3 {[%emt 0:00:10]} Nf6 {[%emt 0:00:32]} 3. e5 {[%emt 0:01:04]} Nd5 {[%emt 0:01:04]} 4. Nc3 {[%emt 0:00:10]} Nxc3 {[%emt 0:00:05]} 5. dxc3 {[%emt 0:00:14]} Nc6 {[%emt 0:00:18]} 6. Bf4 {[%emt 0:02:11]} e6 {[%emt 0:01:59]} 7. Nd2 {[%emt 0:02:42]} d5 {[%emt 0:00:23]} 8. exd6 {[%emt 0:00:41]} Bxd6 {[%emt 0:00:54]} 9. Qf3 {[%emt 0:01:23]} Bxf4 {[%emt 0:05:24]} 10. Qxf4 {[%emt 0:00:12]} O-O {[%emt 0:00:47]} 11. O-O-O {[%emt 0:01:33]} Qe7 {[%emt 0:05:43]} 12. Bb5 {[%emt 0:07:35]} Bd7 {[%emt 0:07:10]} 13. Nc4 {[%emt 0:09:59]} Rad8 {[%emt 0:11:21]} 14. Qc7 {[%emt 0:09:38]} Bc8 {[%emt 0:09:05]} 15. Qf4 {[%emt 0:04:28]} Bd7 {[%emt 0:00:17]} 16. Nd6 {[%emt 0:14:57]} a6 {[%emt 0:03:05]} 17. Be2 {[%emt 0:05:35]} Bc8 {[%emt 0:02:52]} 18. Bf3 {[%emt 0:03:07]} Qc7 {[%emt 0:00:17]} 19. Qg3 {[%emt 0:05:44]} Na5 {[%emt 0:23:21]} 20. Rd3 {[%emt 0:06:30]} Qe7 {[%emt 0:10:52]} 21. Rhd1 {[%emt 0:01:45]} b5 {[%emt 0:04:22]} 22. Qe5 {[%emt 0:04:10]} c4 {[%emt 0:01:57]} 23. R3d2 {[%emt 0:00:41]} Bb7 {[%emt 0:03:54]} 24. Nf5 {[%emt 0:03:55]} Qg5 {[%emt 0:00:12]} 25. h4 {[%emt 0:00:15]} Rxd2 {[%emt 0:05:12]} 26. hxg5 {[%emt 0:00:29]} Rxd1+ {[%emt 0:00:06]} 27. Bxd1 {[%emt 0:00:45]} exf5 {[%emt 0:00:07]} 28. Qc7 {[%emt 0:00:28]} 1-0

[Event "Slovakian ECo-C Extraliga 2024-25"]
[Site "Slovakia"]
[Date "2025.02.15"]
[Round "5.4"]
[White "Cajka, Tibor"]
[Black "Berczes, David"]
[Result "0-1"]
[Annotator "ChessBase"]
[ECO "C11"]
[WhiteElo "2210"]
[BlackElo "2407"]
[PlyCount "68"]
[EventDate "2024.09.12"]
[EventType "team-tourn"]
[EventCountry "SVK"]
[SourceTitle "playchess.com"]
[Source "ChessBase"]
[SourceQuality "1"]
[TimeControl "5400+30"]

1. e4 {[%emt 0:00:20]} e6 {[%emt 0:04:00]} 2. d4 {[%emt 0:00:06]} d5 {[%emt 0:00:04]} 3. Nc3 {[%emt 0:00:06]} Nf6 {[%emt 0:00:18]} 4. Bg5 {[%emt 0:00:33]} dxe4 {[%emt 0:00:26]} 5. Nxe4 {[%emt 0:00:07]} Be7 6. Bxf6 {[%emt 0:04:02]} gxf6 {[%emt 0:00:53]} 7. Nf3 {[%emt 0:13:01]} a6 {[%emt 0:06:00]} 8. Bc4 {[%emt 0:04:01]} b5 {[%emt 0:16:14]} 9. Bb3 {[%emt 0:02:27]} Bb7 {[%emt 0:10:06]} 10. Qe2 {[%emt 0:08:20]} Nd7 {[%emt 0:04:25]} 11. a4 {[%emt 0:10:27]} O-O {[%emt 0:16:55]} 12. O-O {[%emt 0:03:35]} Nb6 {[%emt 0:05:39]} 13. axb5 {[%emt 0:10:38]} axb5 {[%emt 0:02:11]} 14. Rad1 {[%emt 0:00:30]} b4 {[%emt 0:00:30]} 15. Rfe1 {[%emt 0:00:30]} Kh8 {[%emt 0:00:30]} 16. Qb5 {[%emt 0:00:30]} Bd5 {[%emt 0:00:30]} 17. c4 {[%emt 0:00:30]} c6 {[%emt 0:00:30]} 18. Qxb6 {[%emt 0:00:30]} Qxb6 {[%emt 0:00:30]} 19. cxd5 {[%emt 0:00:30]} cxd5 {[%emt 0:00:30]} 20. Ng3 {[%emt 0:00:30]} Qd8 {[%emt 0:00:30]} 21. Rc1 {[%emt 0:00:30]} Rc8 {[%emt 0:00:30]} 22. Ra1 {[%emt 0:00:30]} Rg8 {[%emt 0:00:30]} 23. Nf1 {[%emt 0:00:30]} Bd6 {[%emt 0:00:30]} 24. Re2 {[%emt 0:00:30]} Qf8 {[%emt 0:00:30]} 25. Ne1 {[%emt 0:00:30]} Qh6 {[%emt 0:00:30]} 26. Re3 {[%emt 0:00:30]} Bf4 {[%emt 0:00:30]} 27. Rf3 {[%emt 0:00:30]} Rc1 {[%emt 0:00:30]} 28. Rxc1 {[%emt 0:00:30]} Bxc1 {[%emt 0:00:30]} 29. Nd3 {[%emt 0:00:30]} Bg5 {[%emt 0:00:30]} 30. Nxb4 {[%emt 0:00:30]} f5 {[%emt 0:00:30]} 31. Nc6 {[%emt 0:00:30]} Bf6 {[%emt 0:00:30]} 32. Ba4 {[%emt 0:00:30]} Bxd4 {[%emt 0:00:30]} 33. b4 {[%emt 0:00:30]} Bb6 {[%emt 0:00:30]} 34. Ne5 {[%emt 0:00:30]} Qg7 {[%emt 0:00:30]} 0-1

[Event "Slovakian ECo-C Extraliga 2024-25"]
[Site "Slovakia"]
[Date "2025.02.15"]
[Round "5.4"]
[White "Rak, Martin"]
[Black "Butkiewicz, Lukasz"]
[Result "0-1"]
[Annotator "ChessBase"]
[ECO "E24"]
[WhiteElo "2064"]
[BlackElo "2339"]
[PlyCount "82"]
[EventDate "2024.09.12"]
[EventType "team-tourn"]
[EventCountry "SVK"]
[SourceTitle "playchess.com"]
[Source "ChessBase"]
[SourceQuality "1"]
[TimeControl "5400+30"]

1. d4 {[%emt 0:00:09]} Nf6 {[%emt 0:00:21]} 2. c4 {[%emt 0:00:17]} e6 {[%emt 0:00:10]} 3. Nc3 {[%emt 0:00:12]} Bb4 {[%emt 0:00:12]} 4. a3 {[%emt 0:00:31]} Bxc3+ {[%emt 0:00:42]} 5. bxc3 {[%emt 0:00:09]} c5 {[%emt 0:01:32]} 6. f3 {[%emt 0:00:18]} Nc6 {[%emt 0:02:25]} 7. e4 {[%emt 0:00:57]} d6 {[%emt 0:02:51]} 8. Ne2 {[%emt 0:01:07]} e5 {[%emt 0:08:41]} 9. Be3 {[%emt 0:05:14]} b6 {[%emt 0:03:26]} 10. d5 {[%emt 0:09:40]} Na5 {[%emt 0:03:13]} 11. Ng3 {[%emt 0:00:44]} O-O {[%emt 0:05:51]} 12. Bd3 {[%emt 0:02:49]} Ne8 {[%emt 0:04:53]} 13. h4 {[%emt 0:14:42]} Rb8 {[%emt 0:06:46]} 14. a4 {[%emt 0:13:30]} Bd7 {[%emt 0:00:52]} 15. Qe2 {[%emt 0:06:25]} h6 {[%emt 0:10:28]} 16. Qc2 {[%emt 0:11:17]} Nf6 {[%emt 0:01:28]} 17. Ne2 {[%emt 0:04:14]} a6 {[%emt 0:03:24]} 18. Qa2 {[%emt 0:06:59]} Ra8 {[%emt 0:10:41]} 19. g4 {[%emt 0:01:06]} Nh7 {[%emt 0:00:15]} 20. Ng3 {[%emt 0:01:16]} b5 {[%emt 0:06:32]} 21. Qg2 {[%emt 0:03:33]} bxc4 {[%emt 0:02:49]} 22. Bc2 {[%emt 0:03:01]} f6 {[%emt 0:01:42]} 23. Kf2 {[%emt 0:02:31]} Rb8 {[%emt 0:06:26]} 24. Rab1 {[%emt 0:01:18]} Rxb1 {[%emt 0:03:49]} 25. Rxb1 {[%emt 0:01:09]} Qc7 {[%emt 0:01:19]} 26. g5 {[%emt 0:01:28]} fxg5 {[%emt 0:02:05]} 27. hxg5 {[%emt 0:01:43]} hxg5 {[%emt 0:00:21]} 28. Rh1 {[%emt 0:00:33]} g6 {[%emt 0:02:24]} 29. Qh2 {[%emt 0:03:27]} Bg4 {[%emt 0:01:22]} 30. Bd1 {[%emt 0:00:27]} Bxf3 {[%emt 0:00:50]} 31. Bxf3 {[%emt 0:00:16]} g4 {[%emt 0:00:03]} 32. Qh6 {[%emt 0:02:21]} Rxf3+ {[%emt 0:00:14]} 33. Ke2 {[%emt 0:00:34]} Qf7 {[%emt 0:01:16]} 34. Nf1 {[%emt 0:00:43]} Nb3 {[%emt 0:01:39]} 35. Qh4 {[%emt 0:00:38]} Rxe3+ {[%emt 0:02:12]} 36. Nxe3 {[%emt 0:01:22]} Qf3+ {[%emt 0:00:06]} 37. Ke1 {[%emt 0:00:16]} Qxe3+ {[%emt 0:00:04]} 38. Kf1 {[%emt 0:00:06]} Nd2+ {[%emt 0:00:21]} 39. Kg2 {[%emt 0:00:04]} Qf3+ {[%emt 0:02:21]} 40. Kh2 {[%emt 0:00:34]} Qe2+ {[%emt 0:00:16]} 41. Kg3 {[%emt 0:00:37]} Nxe4# 0-1

[Event "Slovakian ECo-C Extraliga 2024-25"]
[Site "Slovakia"]
[Date "2025.02.15"]
[Round "5.5"]
[White "Hujbert, Florian"]
[Black "Jozefek, Michal"]
[Result "1-0"]
[Annotator "ChessBase"]
[ECO "A34"]
[WhiteElo "2413"]
[BlackElo "2099"]
[PlyCount "51"]
[EventDate "2024.09.12"]
[EventType "team-tourn"]
[EventCountry "SVK"]
[SourceTitle "playchess.com"]
[Source "ChessBase"]
[SourceQuality "1"]
[TimeControl "5400+30"]

1. g3 {[%emt 0:00:07]} Nf6 {[%emt 0:00:23]} 2. Bg2 {[%emt 0:00:14]} c5 {[%emt 0:02:27]} 3. c4 {[%emt 0:00:38]} d5 {[%emt 0:02:49]} 4. cxd5 {[%emt 0:00:39]} Nxd5 {[%emt 0:00:06]} 5. Nc3 {[%emt 0:01:15]} Nc7 {[%emt 0:00:02]} 6. d3 {[%emt 0:01:32]} e5 {[%emt 0:00:48]} 7. Be3 {[%emt 0:01:31]} Ne6 {[%emt 0:03:47]} 8. Nf3 {[%emt 0:12:20]} Nc6 {[%emt 0:00:57]} 9. Nd2 {[%emt 0:00:18]} Bd7 {[%emt 0:01:05]} 10. Nc4 {[%emt 0:01:30]} Qb8 {[%emt 0:14:52]} 11. a4 {[%emt 0:03:29]} Be7 {[%emt 0:02:25]} 12. Nd5 {[%emt 0:07:49]} Bd8 {[%emt 0:00:43]} 13. O-O {[%emt 0:00:37]} O-O {[%emt 0:01:47]} 14. a5 {[%emt 0:02:33]} Re8 {[%emt 0:11:17]} 15. Bd2 {[%emt 0:07:31]} Ncd4 {[%emt 0:05:56]} 16. e3 {[%emt 0:04:30]} Nf5 {[%emt 0:03:28]} 17. Nc3 {[%emt 0:08:02]} f6 {[%emt 0:21:28]} 18. Qf3 {[%emt 0:06:15]} Nd6 {[%emt 0:00:35]} 19. Nxd6 {[%emt 0:09:04]} Qxd6 {[%emt 0:00:05]} 20. Qxb7 {[%emt 0:02:26]} Rb8 {[%emt 0:00:10]} 21. Ne4 {[%emt 0:07:31]} Qc7 {[%emt 0:00:00]} 22. Qd5 {[%emt 0:02:43]} Kh8 {[%emt 0:07:50]} 23. Nd6 {[%emt 0:03:52]} Rf8 {[%emt 0:00:29]} 24. a6 {[%emt 0:02:53]} Rxb2 {[%emt 0:03:57]} 25. Ba5 {[%emt 0:01:14]} Qb8 {[%emt 0:00:03]} 26. Nc4 {[%emt 0:01:12]} 1-0

[Event "Slovakian ECo-C Extraliga 2024-25"]
[Site "Slovakia"]
[Date "2025.02.15"]
[Round "5.5"]
[White "Krak, Tomas"]
[Black "Juhasz, Agoston"]
[Result "1/2-1/2"]
[Annotator "ChessBase"]
[ECO "B90"]
[WhiteElo "2253"]
[BlackElo "2425"]
[PlyCount "195"]
[EventDate "2024.09.12"]
[EventType "team-tourn"]
[EventCountry "SVK"]
[SourceTitle "playchess.com"]
[Source "ChessBase"]
[SourceQuality "1"]
[TimeControl "5400+30"]

1. e4 {[%emt 0:00:14]} c5 {[%emt 0:00:18]} 2. Nf3 {[%emt 0:00:21]} d6 {[%emt 0:00:14]} 3. d4 {[%emt 0:01:40]} cxd4 {[%emt 0:00:10]} 4. Nxd4 {[%emt 0:00:04]} Nf6 {[%emt 0:00:11]} 5. Nc3 {[%emt 0:00:05]} a6 {[%emt 0:00:17]} 6. Be3 {[%emt 0:00:10]} e5 {[%emt 0:00:20]} 7. Nb3 {[%emt 0:00:05]} Be7 {[%emt 0:01:06]} 8. h3 {[%emt 0:00:52]} h6 {[%emt 0:02:27]} 9. Qf3 {[%emt 0:07:20]} b5 {[%emt 0:00:54]} 10. O-O-O {[%emt 0:08:29]} b4 {[%emt 0:01:14]} 11. Nd5 {[%emt 0:01:30]} Nxd5 {[%emt 0:00:17]} 12. exd5 {[%emt 0:00:14]} a5 {[%emt 0:01:17]} 13. Kb1 {[%emt 0:08:08]} O-O {[%emt 0:19:11]} 14. g4 {[%emt 0:00:57]} a4 {[%emt 0:18:50]} 15. Nd2 {[%emt 0:11:06]} b3 {[%emt 0:07:26]} 16. cxb3 {[%emt 0:03:19]} axb3 {[%emt 0:01:04]} 17. a3 {[%emt 0:02:06]} f5 {[%emt 0:01:23]} 18. Bd3 {[%emt 0:00:34]} e4 {[%emt 0:14:11]} 19. Nxe4 {[%emt 0:00:16]} Nd7 {[%emt 0:01:00]} 20. gxf5 {[%emt 0:12:17]} Ne5 {[%emt 0:00:10]} 21. Qg2 {[%emt 0:00:08]} Bxf5 {[%emt 0:02:09]} 22. Bd4 {[%emt 0:06:53]} Bf6 {[%emt 0:04:09]} 23. Rhg1 {[%emt 0:13:41]} Kh8 {[%emt 0:01:19]} 24. Bxe5 {[%emt 0:10:19]} Bxe5 {[%emt 0:01:12]} 25. Ng3 {[%emt 0:05:23]} Bxd3+ {[%emt 0:00:53]} 26. Rxd3 {[%emt 0:00:04]} Qa5 {[%emt 0:06:07]} 27. f4 {[%emt 0:03:41]} Rxf4 {[%emt 0:00:52]} 28. Nh5 {[%emt 0:01:04]} Rf5 {[%emt 0:02:30]} 29. Ng3 {[%emt 0:00:20]} Rf4 {[%emt 0:03:30]} 30. Ne2 {[%emt 0:00:46]} Rf7 {[%emt 0:01:27]} 31. Rxb3 {[%emt 0:01:22]} Raf8 {[%emt 0:01:07]} 32. Nc1 {[%emt 0:01:34]} Rf2 {[%emt 0:00:22]} 33. Qg4 {[%emt 0:00:23]} Qxd5 {[%emt 0:01:13]} 34. Rd1 {[%emt 0:01:12]} Qc6 {[%emt 0:02:05]} 35. Qg6 {[%emt 0:00:40]} Rg2 {[%emt 0:00:54]} 36. Qd3 {[%emt 0:00:13]} Rc8 {[%emt 0:02:27]} 37. Ne2 {[%emt 0:00:20]} Qa4 {[%emt 0:03:39]} 38. Rb4 {[%emt 0:00:28]} Qa7 {[%emt 0:00:18]} 39. Nf4 {[%emt 0:00:43]} Bxf4 {[%emt 0:01:02]} 40. Rxf4 {[%emt 0:00:00]} Rb8 {[%emt 0:00:00]} 41. Rd2 {[%emt 0:00:00]} Rxd2 {[%emt 0:00:00]} 42. Qxd2 {[%emt 0:00:00]} d5 {[%emt 0:00:00]} 43. Rd4 {[%emt 0:00:00]} Qxa3 {[%emt 0:00:00]} 44. Rxd5 {[%emt 0:00:00]} Qxh3 {[%emt 0:00:00]} 45. Rd8+ {[%emt 0:00:00]} Rxd8 {[%emt 0:00:00]} 46. Qxd8+ {[%emt 0:00:00]} Kh7 {[%emt 0:00:00]} 47. Qd5 {[%emt 0:00:00]} h5 {[%emt 0:00:00]} 48. b4 {[%emt 0:00:00]} Qg4 {[%emt 0:00:00]} 49. b5 {[%emt 0:00:15]} h4 {[%emt 0:00:00]} 50. Qd3+ {[%emt 0:03:19]} g6 {[%emt 0:00:00]} 51. Qd8 {[%emt 0:02:44]} h3 {[%emt 0:04:45]} 52. b6 {[%emt 0:00:34]} Qg1+ {[%emt 0:01:34]} 53. Kc2 {[%emt 0:00:50]} Qf2+ {[%emt 0:00:00]} 54. Qd2 {[%emt 0:00:00]} Qxd2+ {[%emt 0:00:53]} 55. Kxd2 {[%emt 0:00:00]} h2 {[%emt 0:00:03]} 56. b7 {[%emt 0:00:00]} h1=Q {[%emt 0:00:05]} 57. b8=Q {[%emt 0:00:00]} Qd5+ {[%emt 0:00:38]} 58. Ke3 {[%emt 0:00:00]} Qe6+ {[%emt 0:01:05]} 59. Kf3 {[%emt 0:00:00]} Qf5+ {[%emt 0:00:31]} 60. Qf4 {[%emt 0:00:00]} Qd5+ {[%emt 0:00:30]} 61. Kg4 {[%emt 0:00:00]} Qe6+ {[%emt 0:00:49]} 62. Kg5 {[%emt 0:00:00]} Qe7+ {[%emt 0:00:18]} 63. Kg4 {[%emt 0:00:00]} Qe2+ {[%emt 0:00:31]} 64. Kg5 {[%emt 0:00:55]} Qe7+ {[%emt 0:00:42]} 65. Kg4 {[%emt 0:00:05]} Qd7+ {[%emt 0:00:06]} 66. Kg5 {[%emt 0:00:20]} Qb5+ {[%emt 0:00:13]} 67. Kf6 {[%emt 0:00:53]} Qb6+ {[%emt 0:00:41]} 68. Kg5 {[%emt 0:00:12]} Qc5+ {[%emt 0:00:04]} 69. Kf6 {[%emt 0:00:19]} Qf8+ {[%emt 0:00:47]} 70. Kg5 {[%emt 0:00:11]} Qh6+ {[%emt 0:00:32]} 71. Kg4 {[%emt 0:00:03]} Qh5+ {[%emt 0:00:06]} 72. Kg3 {[%emt 0:00:08]} Qc5 {[%emt 0:00:25]} 73. Kg4 {[%emt 0:00:54]} Kg7 {[%emt 0:00:25]} 74. Qg5 {[%emt 0:00:49]} Qg1+ {[%emt 0:00:46]} 75. Kf4 {[%emt 0:00:09]} Qe1 {[%emt 0:00:22]} 76. Kg4 {[%emt 0:00:30]} Qe2+ {[%emt 0:00:54]} 77. Kf4 {[%emt 0:00:17]} Qe6 {[%emt 0:00:13]} 78. Kg3 {[%emt 0:00:15]} Qe4 {[%emt 0:00:15]} 79. Qf4 {[%emt 0:00:38]} Qe1+ {[%emt 0:01:45]} 80. Kg4 {[%emt 0:00:09]} Qg1+ {[%emt 0:00:13]} 81. Kh4 {[%emt 0:00:14]} Qh1+ {[%emt 0:00:13]} 82. Kg4 {[%emt 0:00:20]} Qd1+ {[%emt 0:00:22]} 83. Kh4 {[%emt 0:00:12]} Qh5+ {[%emt 0:00:43]} 84. Kg3 {[%emt 0:00:06]} Qc5 {[%emt 0:00:45]} 85. Kh4 {[%emt 0:00:24]} Qe7+ {[%emt 0:00:55]} 86. Kg4 {[%emt 0:00:26]} Qd7+ {[%emt 0:00:30]} 87. Kh4 {[%emt 0:00:08]} Qd8+ {[%emt 0:00:04]} 88. Kg4 {[%emt 0:00:19]} Qc8+ {[%emt 0:00:11]} 89. Kh4 {[%emt 0:00:44]} Qd7 {[%emt 0:01:00]} 90. Qg5 {[%emt 0:00:58]} Qd4+ {[%emt 0:00:21]} 91. Kg3 {[%emt 0:00:11]} Qe4 {[%emt 0:00:17]} 92. Qf4 {[%emt 0:00:59]} Qe7 {[%emt 0:00:17]} 93. Kg4 {[%emt 0:01:00]} Qf6 {[%emt 0:00:26]} 94. Qxf6+ {[%emt 0:00:13]} Kxf6 {[%emt 0:00:03]} 95. Kf4 {[%emt 0:00:07]} g5+ {[%emt 0:00:07]} 96. Kg4 {[%emt 0:00:05]} Kg6 {[%emt 0:00:04]} 97. Kg3 {[%emt 0:00:02]} g4 {[%emt 0:00:17]} 98. Kxg4 {[%emt 0:00:06]} 1/2-1/2